bitfinex-derivatives/quotes_BTCF0:USTF0_20250828
["timestamp","ask_amount","ask_price","bid_price","bid_amount"]
[1756411706281,0.1567795,111960.0,111950.0,0.69344139]
[1756411706582,0.1067795,111960.0,111950.0,0.69344139]
[1756411707084,0.1167795,111960.0,111950.0,0.69344139]
[1756411707784,0.1411295,111960.0,111950.0,0.69344139]
[1756411708986,0.1311295,111960.0,111950.0,0.69344139]
[1756411709782,0.1067795,111960.0,111950.0,0.69344139]
[1756411710379,0.1309395,111960.0,111950.0,0.69344139]
[1756411710779,0.1067795,111960.0,111950.0,0.69344139]
[1756411710977,0.9774995,111960.0,111950.0,0.69344139]
[1756411711176,1.0016595,111960.0,111950.0,0.69344139]
[1756411711379,1.0116595,111960.0,111950.0,0.69344139]
[1756411711880,1.0016595,111960.0,111950.0,0.69344139]
[1756411712778,1.1416595,111960.0,111950.0,0.06080033]
[1756411712981,1.1416595,111960.0,111950.0,0.60412399]
[1756411713186,1.68498316,111960.0,111950.0,0.60412399]
[1756411713389,1.1416595,111960.0,111950.0,0.69344159]
[1756411713586,1.1416595,111960.0,111950.0,0.60412399]
[1756411713986,1.1416595,111960.0,111950.0,0.69344159]
[1756411714994,1.0016595,111960.0,111950.0,0.69344159]
[1756411715190,1.0016595,111960.0,111950.0,0.15011793]
[1756411715391,1.0016595,111960.0,111950.0,0.69344159]
[1756411715790,1.0216595,111960.0,111950.0,0.69344159]
[1756411717192,1.2916595,111960.0,111950.0,0.69344159]
[1756411717993,1.1116595,111960.0,111950.0,0.69344159]
[1756411718494,1.3516595,111960.0,111950.0,0.69344159]
[1756411718693,1.3516595,111960.0,111950.0,0.60412399]
[1756411718888,1.3516595,111960.0,111950.0,0.15011793]
[1756411719098,1.89498316,111960.0,111950.0,0.69344159]
[1756411719393,1.0816595,111960.0,111950.0,0.06080033]
[1756411719598,1.62498316,111960.0,111950.0,0.60412399]
[1756411720200,1.84498316,111960.0,111950.0,0.69344209]
[1756411720394,1.3016595,111960.0,111950.0,0.69344209]
[1756411721299,0.1309401,111960.0,111950.0,0.69344209]
[1756411721504,1.0008601,111960.0,111950.0,0.69344209]
[1756411721704,1.1108601,111960.0,111950.0,0.69344209]
[1756411722403,1.1108601,111960.0,111950.0,0.15011843]
[1756411722598,1.1108601,111960.0,111950.0,0.69344209]
[1756411723905,1.3008601,111960.0,111950.0,0.69344209]
[1756411724207,1.1008601,111960.0,111950.0,0.69344209]
[1756411724807,1.0008601,111960.0,111950.0,0.69344209]
[1756411725107,1.0108601,111960.0,111950.0,0.69344209]
[1756411725811,1.3308601,111960.0,111950.0,0.69344209]
[1756411726107,1.1108601,111960.0,111950.0,0.69344209]
[1756411726408,1.2908601,111960.0,111950.0,0.69344209]
[1756411726608,1.1008601,111960.0,111950.0,0.69344209]
[1756411727209,0.2309401,111960.0,111950.0,0.69344209]
[1756411727409,1.1003401,111960.0,111950.0,0.15011843]
[1756411727709,1.1003401,111960.0,111950.0,0.69344209]
[1756411729004,1.3503401,111960.0,111950.0,0.69344209]
[1756411729200,1.1203401,111960.0,111950.0,0.69344209]
[1756411729403,1.1103401,111960.0,111950.0,0.69344209]
[1756411729610,1.1103401,111960.0,111950.0,0.15011843]
[1756411729806,1.3203401,111960.0,111950.0,0.69344209]
[1756411730009,1.0003401,111960.0,111950.0,0.69344209]
[1756411730411,1.0503401,111960.0,111950.0,0.69344209]
[1756411731409,1.0003401,111960.0,111950.0,0.69344209]
[1756411731607,1.0103401,111960.0,111950.0,0.69344209]
[1756411732812,1.3103401,111960.0,111950.0,0.69344209]
[1756411734418,1.1195001,111960.0,111950.0,0.69344209]
[1756411734612,0.2509401,111960.0,111950.0,0.69344209]
[1756411734914,0.9995001,111960.0,111950.0,0.69344209]
[1756411736513,0.1309401,111960.0,111950.0,0.69344209]
[1756411736714,0.9993001,111960.0,111950.0,0.69344209]
[1756411737014,1.0392601,111960.0,111950.0,0.69344209]
[1756411738712,0.1709401,111960.0,111950.0,0.69344209]
[1756411738914,1.0390601,111960.0,111950.0,0.69344209]
[1756411739613,0.1709401,111960.0,111950.0,0.69344209]
[1756411742320,0.1309401,111960.0,111950.0,0.69344209]
[1756411742821,0.1309402,111960.0,111950.0,0.69344209]
[1756411743617,0.002,111960.0,111950.0,1.23676575]
[1756411745317,0.002,111960.0,111950.0,1.23627042]
[1756411745517,0.002,111960.0,111950.0,1.48627042]
[1756411748229,0.002,111960.0,111950.0,0.3996231]
[1756411748424,0.002,111960.0,111950.0,1.48627042]
[1756411748727,0.002,111960.0,111950.0,1.23618741]
[1756411748922,0.01777541,111970.0,111960.0,0.1130103]
[1756411749228,0.03318541,111970.0,111960.0,2.08238762]
[1756411749624,0.03318541,111970.0,111960.0,2.09124172]
[1756411750530,0.03518541,111970.0,111960.0,2.09124172]
[1756411751027,0.02077541,111970.0,111960.0,2.09124172]
[1756411752033,0.11007771,111970.0,111960.0,2.09124172]
[1756411752237,0.10907771,111970.0,111960.0,2.09124172]
[1756411752530,0.01777541,111970.0,111960.0,2.09124172]
[1756411753830,0.01777541,111970.0,111960.0,2.09088172]
[1756411754528,0.10707771,111970.0,111960.0,2.09064172]
[1756411754726,0.10707771,111970.0,111960.0,1.22408172]
[1756411754927,0.10707771,111970.0,111960.0,2.09064172]
[1756411755230,0.10707771,111970.0,111960.0,1.22408172]
[1756411755431,0.10707771,111970.0,111960.0,2.09056172]
[1756411756931,0.14554771,111970.0,111960.0,0.1285803]
[1756411757132,0.14554771,111970.0,111960.0,1.21522762]
[1756411758129,0.12248771,111970.0,111960.0,1.21522762]
[1756411758634,0.14554771,111970.0,111960.0,1.21522762]
[1756411759538,0.12248771,111970.0,111960.0,1.21522762]
[1756411759834,0.12248771,111970.0,111960.0,1.2239912]
[1756411760037,0.12248771,111970.0,111960.0,1.21522762]
[1756411761926,0.14554771,111970.0,111960.0,1.21522762]
[1756411762333,0.12248771,111970.0,111960.0,1.21522762]
[1756411762941,0.12248771,111970.0,111960.0,2.08094762]
[1756411763542,0.12248771,111970.0,111960.0,2.08974881]
[1756411763738,0.12248771,111970.0,111960.0,1.22402881]
[1756411764842,0.14554771,111970.0,111960.0,1.21522762]
[1756411765139,0.12248771,111970.0,111960.0,1.21522762]
[1756411765741,0.12248771,111970.0,111960.0,1.22417384]
[1756411769240,0.01777541,111970.0,111960.0,1.22417384]
[1756411769647,0.10707771,111970.0,111960.0,1.22417384]
[1756411769946,0.01777541,111970.0,111960.0,2.33030762]
[1756411770147,0.67167656,112000.0,111990.0,0.03975]
[1756411770342,0.96258944,112000.0,111990.0,0.05990954]
[1756411770544,0.96258944,112000.0,111990.0,0.6925195]
[1756411771449,0.96558944,112000.0,111990.0,0.6935195]
[1756411771644,1.5089131,112000.0,111990.0,0.6935195]
[1756411771844,0.96758944,112000.0,111990.0,0.6935195]
[1756411772347,1.5099131,112000.0,111990.0,0.6935195]
[1756411772947,1.5069131,112000.0,111990.0,0.6925195]
[1756411773249,0.96358944,112000.0,111990.0,0.6925195]
[1756411773442,1.5079131,112000.0,111990.0,0.6925195]
[1756411773944,1.5089131,112000.0,111990.0,0.6925195]
[1756411776551,0.96558944,112000.0,111990.0,0.6925195]
[1756411776751,1.5089131,112000.0,111990.0,0.6925195]
[1756411777647,1.5089131,112000.0,111990.0,0.02015954]
[1756411777949,1.7589131,112000.0,111990.0,0.02015954]
[1756411779641,2.0227131,112000.0,111990.0,0.02015954]
[1756411780041,2.3803931,112000.0,111990.0,0.02015954]
[1756411780852,1.5164331,112000.0,111990.0,0.02015954]
[1756411781152,2.3803931,112000.0,111990.0,0.02015954]
[1756411787459,0.03903,111980.0,111970.0,0.03975]
[1756411787758,1.55288623,111980.0,111970.0,0.58307366]
[1756411787960,1.00956257,111980.0,111970.0,0.58307366]
[1756411788149,1.55288623,111980.0,111970.0,0.55940366]
[1756411788349,0.0893022,111970.0,111960.0,0.58307366]
[1756411788554,0.67165586,111970.0,111960.0,0.58307366]
[1756411788754,0.67065586,111970.0,111960.0,0.58307366]
[1756411789064,0.67972147,111970.0,111960.0,0.58307366]
[1756411789462,0.13739781,111970.0,111960.0,0.58507366]
[1756411789664,0.1273322,111970.0,111960.0,0.58507366]
[1756411789865,0.9904122,111970.0,111960.0,1.21770752]
[1756411790059,0.9904122,111970.0,111960.0,0.67438386]
[1756411790356,0.9904122,111970.0,111960.0,0.67638386]
[1756411790753,0.9924122,111970.0,111960.0,0.67438386]
[1756411791062,0.9924122,111970.0,111960.0,1.21770752]
[1756411791264,0.9924122,111970.0,111960.0,0.67438386]
[1756411791565,0.9924122,111970.0,111960.0,0.67238386]
[1756411791566,0.9934122,111970.0,111960.0,0.67238386]
[1756411793263,0.9934122,111970.0,111960.0,0.1290602]
[1756411793461,0.9934122,111970.0,111960.0,0.52246191]
[1756411793961,0.1303322,111970.0,111960.0,0.52246191]
[1756411794166,0.9930922,111970.0,111960.0,0.52246191]
[1756411794867,0.9930922,111970.0,111960.0,0.61177211]
[1756411795270,0.9930922,111970.0,111960.0,0.01608]
[1756411795463,0.1283402,111960.0,111950.0,0.5023139]
[1756411795658,0.14610755,111960.0,111950.0,0.05935199]
[1756411795863,0.87881946,111960.0,111950.0,0.01960199]
[1756411796263,1.25858755,111960.0,111950.0,0.01960199]
[1756411796869,1.25958755,111960.0,111950.0,0.01960199]
[1756411797369,1.26058755,111960.0,111950.0,0.01960199]
[1756411798767,1.26058755,111960.0,111950.0,0.03568199]
[1756411800969,0.39810755,111960.0,111950.0,0.5183939]
[1756411801172,1.26026755,111960.0,111950.0,0.5183939]
[1756411801771,0.39810755,111960.0,111950.0,0.5425239]
[1756411801964,1.26022755,111960.0,111950.0,0.05981199]
[1756411802774,1.26022755,111960.0,111950.0,0.03568199]
[1756411803374,1.26022755,111960.0,111950.0,0.05981199]
[1756411803577,1.26022755,111960.0,111950.0,0.03568199]
[1756411806077,1.25982755,111960.0,111950.0,0.03568199]
[1756411806278,1.52362755,111960.0,111950.0,0.03568199]
[1756411807277,0.66190755,111960.0,111950.0,0.03568199]
[1756411807477,1.27358755,111960.0,111950.0,0.5425239]
[1756411807876,1.27358755,111960.0,111950.0,0.05981199]
[1756411808474,1.75629946,111960.0,111950.0,0.01960199]
[1756411808873,0.89461946,111960.0,111950.0,0.01960199]
[1756411809175,1.75617946,111960.0,111950.0,0.01960199]
[1756411810477,1.27346755,111960.0,111950.0,0.03494199]
[1756411810677,1.75617946,111960.0,111950.0,0.03494199]
[1756411810876,1.27346755,111960.0,111950.0,0.03494199]
[1756411811176,1.75617946,111960.0,111950.0,0.03494199]
[1756411811372,1.75581946,111960.0,111950.0,0.03494199]
[1756411811579,1.27310755,111960.0,111950.0,0.5417839]
[1756411811778,0.41190755,111960.0,111950.0,0.5417839]
[1756411812077,1.27310755,111960.0,111950.0,0.05907199]
[1756411812478,0.41190755,111960.0,111950.0,0.12426019]
[1756411812778,1.27306755,111960.0,111950.0,0.8811021]
[1756411813482,1.00926755,111960.0,111950.0,0.8811021]
[1756411815683,1.00926755,111960.0,111950.0,0.39839019]
[1756411815883,1.00926755,111960.0,111950.0,0.8811021]
[1756411816388,1.00926755,111960.0,111950.0,0.39839019]
[1756411816590,0.14810755,111960.0,111950.0,0.8811021]
[1756411816785,1.00898755,111960.0,111950.0,0.8811021]
[1756411819292,1.00898755,111960.0,111950.0,0.94152007]
[1756411819992,1.00898755,111960.0,111950.0,0.39839019]
[1756411820291,1.00898755,111960.0,111950.0,0.94152007]
[1756411820486,1.55211743,111960.0,111950.0,0.94152007]
[1756411821190,1.00898755,111960.0,111950.0,0.94152007]
[1756411821489,1.55211743,111960.0,111950.0,0.94152007]
[1756411821692,1.55211743,111960.0,111950.0,0.39839009]
[1756411821888,1.55211743,111960.0,111950.0,0.94151997]
[1756411823190,1.55211743,111960.0,111950.0,0.39839009]
[1756411823391,1.55211743,111960.0,111950.0,0.94151997]
[1756411824490,1.55211743,111960.0,111950.0,0.85220187]
[1756411824991,1.55211743,111960.0,111950.0,0.39839019]
[1756411825193,1.55211743,111960.0,111950.0,0.94152007]
[1756411826786,1.00898755,111960.0,111950.0,0.94152007]
[1756411826994,1.00790755,111960.0,111950.0,0.94152007]
[1756411827385,1.00790755,111960.0,111950.0,0.39839019]
[1756411827587,1.00790755,111960.0,111950.0,0.94152007]
[1756411829598,1.00790755,111960.0,111950.0,0.39839019]
[1756411829790,1.00790755,111960.0,111950.0,0.94152007]
[1756411830194,0.9901402,111960.0,111950.0,0.94152007]
[1756411830398,0.9899402,111960.0,111950.0,0.94152007]
[1756411833991,0.1303402,111960.0,111950.0,0.94152007]
[1756411834197,0.9895002,111960.0,111950.0,0.94152007]
[1756411846603,0.04103,111960.0,111950.0,0.69152007]
[1756411846906,0.87533,111960.0,111950.0,1.23464995]
[1756411847311,0.01729,111960.0,111950.0,1.23464995]
[1756411847605,0.002,111960.0,111950.0,2.09260995]
[1756411848705,0.002,111960.0,111950.0,1.23464995]
[1756411848906,0.002,111960.0,111950.0,2.09248995]
[1756411849206,0.04106,111960.0,111950.0,0.69152007]
[1756411852303,0.01715,111960.0,111950.0,0.69152007]
[1756411852908,0.04106,111960.0,111950.0,0.69152007]
[1756411856410,0.01715,111960.0,111950.0,0.69152007]
[1756411860412,0.04014,111960.0,111950.0,0.69152007]
[1756411860613,0.01715,111960.0,111950.0,0.69152007]
[1756411861517,0.002,111960.0,111950.0,0.69152007]
[1756411862008,0.002,111960.0,111950.0,1.23464995]
[1756411863214,0.002,111960.0,111950.0,2.34116995]
[1756411863512,0.1053034,111970.0,111960.0,0.1291213]
[1756411863708,0.1053034,111970.0,111960.0,1.21538106]
[1756411863914,0.1282934,111970.0,111960.0,1.21538106]
[1756411864217,0.016,111970.0,111960.0,1.21538106]
[1756411864721,0.1053034,111970.0,111960.0,1.21538106]
[1756411865114,0.1073034,111970.0,111960.0,1.21538106]
[1756411865716,0.1302934,111970.0,111960.0,1.21538106]
[1756411866018,0.1302934,111970.0,111960.0,0.1291213]
[1756411866210,0.1302934,111970.0,111960.0,1.21538106]
[1756411866516,0.018,111970.0,111960.0,1.21538106]
[1756411870912,0.1073036,111970.0,111960.0,1.21538106]
[1756411871112,0.018,111970.0,111960.0,1.21538106]
[1756411871912,0.1073036,111970.0,111960.0,1.21538106]
[1756411872713,0.018,111970.0,111960.0,1.21538106]
[1756411873120,0.1073036,111970.0,111960.0,1.21538106]
[1756411873520,0.0913036,111970.0,111960.0,1.21538106]
[1756411878519,0.002,111970.0,111960.0,1.21538106]
[1756411879224,0.0913036,111970.0,111960.0,1.21538106]
[1756411880621,0.002,111970.0,111960.0,1.21538106]
[1756411882729,0.0913036,111970.0,111960.0,1.21538106]
[1756411883135,0.002,111970.0,111960.0,1.21538106]
[1756411883425,0.0913036,111970.0,111960.0,1.21538106]
[1756411884029,0.1302936,111970.0,111960.0,0.1291213]
[1756411884218,0.1302936,111970.0,111960.0,1.21538106]
[1756411884421,0.1302936,111970.0,111960.0,0.1291213]
[1756411884828,0.1302936,111970.0,111960.0,1.21538106]
[1756411885028,0.1073036,111970.0,111960.0,1.21538106]
[1756411887025,0.1302936,111970.0,111960.0,1.21538106]
[1756411889933,0.1073036,111970.0,111960.0,0.1291213]
[1756411890132,0.1073036,111970.0,111960.0,1.21538106]
[1756411891234,0.1305636,111970.0,111960.0,1.21538106]
[1756411893835,0.1305636,111970.0,111960.0,0.67225148]
[1756411894439,0.1305636,111970.0,111960.0,1.21538136]
[1756411894838,0.1305636,111970.0,111960.0,0.67225148]
[1756411895936,0.1073036,111970.0,111960.0,0.67225148]
[1756411896434,0.1305636,111970.0,111960.0,1.21538136]
[1756411897337,0.1073036,111970.0,111960.0,1.21538136]
[1756411898335,0.1305636,111970.0,111960.0,1.21538136]
[1756411898535,0.1073036,111970.0,111960.0,1.21538136]
[1756411899140,0.1305636,111970.0,111960.0,1.21538136]
[1756411900540,0.1073036,111970.0,111960.0,1.21538136]
[1756411904943,0.002,111970.0,111960.0,1.21538136]
[1756411910434,0.01818911,111980.0,111970.0,0.1134436]
[1756411910637,0.01818911,111980.0,111970.0,0.67175348]
[1756411911642,0.02218911,111980.0,111970.0,0.67175348]
[1756411912342,0.02218911,111980.0,111970.0,0.69163966]
[1756411912549,0.02218911,111980.0,111970.0,1.55294039]
[1756411914548,0.02218911,111980.0,111970.0,1.55258039]
[1756411916060,0.02218911,111980.0,111970.0,0.15761051]
[1756411916359,0.02218911,111980.0,111970.0,0.70074039]
[1756411917060,0.03834911,111980.0,111970.0,0.70074039]
[1756411920861,0.02218911,111980.0,111970.0,0.70074039]
[1756411921963,0.03764911,111980.0,111970.0,0.70074039]
[1756411923963,0.02218911,111980.0,111970.0,0.70074039]
[1756411927465,0.02218911,111980.0,111970.0,0.15761051]
[1756411927666,0.02218911,111980.0,111970.0,0.70074039]
[1756411928367,0.02018911,111980.0,111970.0,0.70074039]
[1756411929371,1.50589558,112000.0,111990.0,0.0892877]
[1756411929565,1.75135558,112000.0,111990.0,0.67103758]
[1756411930673,1.75335558,112000.0,111990.0,0.67103758]
[1756411930970,1.75435558,112000.0,111990.0,0.67103758]
[1756411932372,0.90363558,112000.0,111990.0,0.67103758]
[1756411932573,1.75379558,112000.0,111990.0,0.67103758]
[1756411932874,1.2106657,112000.0,111990.0,0.67103758]
[1756411933069,1.75379558,112000.0,111990.0,0.67103758]
[1756411933769,0.6105057,112000.0,111990.0,0.67103758]
[1756411933970,1.4606657,112000.0,111990.0,0.67103758]
[1756411934472,1.12122,112000.0,111990.0,1.21416746]
[1756411934772,1.35122,112000.0,111990.0,1.21416746]
[1756411935072,1.35122,112000.0,111990.0,0.67103758]
[1756411935767,1.4404997,112000.0,111990.0,0.67103758]
[1756411936775,1.98362958,112000.0,111990.0,0.67103758]
[1756411937173,1.4404997,112000.0,111990.0,0.69108]
[1756411937571,1.98362958,112000.0,111990.0,0.69108]
[1756411937873,1.98462958,112000.0,111990.0,0.69208]
[1756411940776,0.99166,112000.0,111990.0,0.69208]
[1756411940976,1.53478988,112000.0,111990.0,0.69208]
[1756411941978,1.62406958,112000.0,111990.0,0.69208]
[1756411942376,1.0809397,112000.0,111990.0,0.69208]
[1756411942575,1.62406958,112000.0,111990.0,0.69208]
[1756411944680,1.0809397,112000.0,111990.0,0.69208]
[1756411944880,1.62406958,112000.0,111990.0,0.69208]
[1756411945582,1.0809397,112000.0,111990.0,0.69208]
[1756411945883,1.62406958,112000.0,111990.0,0.69208]
[1756411946582,1.0809397,112000.0,111990.0,0.69208]
[1756411946782,1.62406958,112000.0,111990.0,0.69208]
[1756411947583,1.0809397,112000.0,111990.0,0.69208]
[1756411947781,0.99166,112000.0,111990.0,0.69208]
[1756411948681,1.0809397,112000.0,111990.0,0.69208]
[1756411949584,1.62406958,112000.0,111990.0,0.69208]
[1756411949986,1.62406958,112000.0,111990.0,0.14895012]
[1756411950286,1.0809397,112000.0,111990.0,0.69208]
[1756411950483,1.62406958,112000.0,111990.0,0.69208]
[1756411955087,0.14222,112000.0,111990.0,0.69208]
[1756411955289,0.99034,112000.0,111990.0,1.23520988]
[1756411955489,1.0796197,112000.0,111990.0,0.69208]
[1756411960391,0.98982,112000.0,111990.0,1.23520988]
[1756411961185,0.98982,112000.0,111990.0,0.69208]
[1756411961388,0.98982,112000.0,111990.0,1.23520988]
[1756411964090,1.0790997,112000.0,111990.0,1.23520988]
[1756411964486,1.0790997,112000.0,111990.0,0.69208]
[1756411965297,0.98982,112000.0,111990.0,0.69208]
[1756411966902,0.98982,112000.0,111990.0,1.23520988]
[1756411967294,0.98982,112000.0,111990.0,0.69208]
[1756411968701,1.0790997,112000.0,111990.0,0.69208]
[1756411969300,0.98982,112000.0,111990.0,0.69208]
[1756411969497,0.14222,112000.0,111990.0,0.14895012]
[1756411969689,0.9891,112000.0,111990.0,1.23520988]
[1756411969893,0.8891,112000.0,111990.0,1.23520988]
[1756411970703,0.8891,112000.0,111990.0,0.14895012]
[1756411970898,0.04218,112000.0,111990.0,0.14895012]
[1756411971101,0.88898,112000.0,111990.0,1.23520988]
[1756411971297,0.04218,112000.0,111990.0,1.23520988]
[1756411971604,0.01946,112000.0,111990.0,1.23520988]
[1756411971800,0.04328,112000.0,111990.0,1.23520988]
[1756411976218,0.01946,112000.0,111990.0,1.23520988]
[1756411976817,0.04328,112000.0,111990.0,1.23520988]
[1756411979118,0.01946,112000.0,111990.0,1.23520988]
[1756411979815,0.004,112000.0,111990.0,1.23520988]
[1756411980018,0.004,112000.0,111990.0,1.48520988]
[1756411981219,0.01586,112020.0,112010.0,0.1290117]
[1756411981420,0.01586,112020.0,112010.0,1.23486255]
[1756411981825,0.05790806,112030.0,112020.0,0.1044138]
[1756411982119,0.05790806,112030.0,112020.0,1.21526356]
[1756411982520,0.03338806,112030.0,112020.0,1.21526356]
[1756411983119,0.05790806,112030.0,112020.0,1.21526356]
[1756411983327,0.05990806,112030.0,112020.0,1.21526356]
[1756411984720,0.06090806,112030.0,112020.0,1.21526356]
[1756411984921,0.03638806,112030.0,112020.0,1.21526356]
[1756411985222,0.03438806,112030.0,112020.0,1.21626356]
[1756411985722,0.05890806,112030.0,112020.0,1.22542452]
[1756411986423,0.05890806,112030.0,112020.0,0.13916476]
[1756411986722,0.05890806,112030.0,112020.0,1.22542452]
[1756411987931,0.05890806,112030.0,112020.0,0.67313368]
[1756411988816,0.05890806,112030.0,112020.0,0.1300038]
[1756411989024,0.05890806,112030.0,112020.0,1.21626356]
[1756411989624,0.05890806,112030.0,112020.0,0.1300038]
[1756411989825,0.05890806,112030.0,112020.0,1.21626356]
[1756411991922,0.001,112030.0,112020.0,1.21626356]
[1756411992117,0.001,112030.0,112020.0,0.1300038]
[1756411992328,0.01659,112030.0,112020.0,1.21626356]
[1756411994328,0.01659,112030.0,112020.0,0.1300038]
[1756411994529,0.01659,112030.0,112020.0,1.21626356]
[1756411996720,0.001,112030.0,112020.0,1.21626356]
[1756411996927,0.02552,112030.0,112020.0,1.21626356]
[1756411997229,0.04111,112030.0,112020.0,1.21626356]
[1756411999029,0.01659,112030.0,112020.0,1.21626356]
[1756411999728,0.04111,112030.0,112020.0,1.21626356]
[1756411999929,0.01659,112030.0,112020.0,1.21626356]
[1756412003033,0.001,112030.0,112020.0,1.21626356]
[1756412007839,0.001,112030.0,112020.0,2.06130356]
[1756412008242,0.001,112030.0,112020.0,1.21626356]
[1756412008441,0.001,112030.0,112020.0,2.06126356]
[1756412013340,0.01659,112030.0,112020.0,1.21626356]
[1756412013540,0.01659,112030.0,112020.0,2.06110356]
[1756412014141,0.001,112030.0,112020.0,2.06110356]
[1756412014642,0.001,112030.0,112020.0,0.1300038]
[1756412014941,0.001,112030.0,112020.0,2.06102356]
[1756412020137,0.001,112030.0,112020.0,2.31102356]
[1756412020342,0.30306,112050.0,112040.0,0.1292778]
[1756412020540,0.39911,112050.0,112040.0,0.67240768]
[1756412020743,0.2638,112050.0,112040.0,0.67240768]
[1756412021639,0.2638,112050.0,112040.0,2.06005756]
[1756412022344,0.2658,112050.0,112040.0,2.06005756]
[1756412022546,0.2678,112050.0,112040.0,2.06005756]
[1756412022937,0.2678,112050.0,112040.0,0.9737978]
[1756412023134,0.2658,112050.0,112040.0,2.06105756]
[1756412024044,0.2638,112050.0,112040.0,2.06305756]
[1756412025047,0.033174,112060.0,112050.0,0.1292699]
[1756412025342,0.033174,112060.0,112050.0,1.21552966]
[1756412025544,0.057124,112060.0,112050.0,1.2245235]
[1756412026645,0.033174,112060.0,112050.0,1.2245235]
[1756412027845,0.017864,112060.0,112050.0,1.2245235]
[1756412030649,0.85963,112070.0,112060.0,0.1052131]
[1756412030848,0.85963,112070.0,112060.0,0.67239298]
[1756412032346,0.88558,112070.0,112060.0,0.67239298]
[1756412033150,0.9748052,112070.0,112060.0,0.1292631]
[1756412033348,1.51793508,112070.0,112060.0,0.67239298]
[1756412033946,0.9748052,112070.0,112060.0,0.67239298]
[1756412040544,0.1055031,112060.0,112050.0,0.129041]
[1756412040859,0.67318298,112060.0,112050.0,0.67217088]
[1756412041355,0.9737331,112060.0,112050.0,0.67217088]
[1756412044464,0.9747331,112060.0,112050.0,0.67217088]
[1756412044767,0.9757331,112060.0,112050.0,0.67217088]
[1756412045165,0.9757331,112060.0,112050.0,0.129041]
[1756412045367,0.9757331,112060.0,112050.0,0.67217088]
[1756412047269,1.51886298,112060.0,112050.0,0.67217088]
[1756412047467,0.67518298,112060.0,112050.0,0.67217088]
[1756412047668,0.9754931,112060.0,112050.0,0.129041]
[1756412047865,0.9754931,112060.0,112050.0,0.67217088]
[1756412050770,0.1320531,112060.0,112050.0,0.67217088]
[1756412050969,0.9754131,112060.0,112050.0,0.67217088]
[1756412051171,0.9753331,112060.0,112050.0,0.67217088]
[1756412051574,0.9753331,112060.0,112050.0,0.129041]
[1756412051774,0.9753331,112060.0,112050.0,1.21530076]
[1756412051965,0.9753331,112060.0,112050.0,0.129041]
[1756412052169,1.51846298,112060.0,112050.0,0.129041]
[1756412052364,0.9753331,112060.0,112050.0,1.21530076]
[1756412053074,0.9753331,112060.0,112050.0,0.67217088]
[1756412055478,0.9751731,112060.0,112050.0,0.67217088]
[1756412055877,1.51830298,112060.0,112050.0,0.67217088]
[1756412056177,1.51830298,112060.0,112050.0,0.67217098]
[1756412059380,1.52716339,112060.0,112050.0,0.1290411]
[1756412059594,1.52716339,112060.0,112050.0,0.64750098]
[1756412059983,1.52716339,112060.0,112050.0,0.67217098]
[1756412061283,0.68404339,112060.0,112050.0,0.67217098]
[1756412061480,1.52700339,112060.0,112050.0,0.67217098]
[1756412063486,1.52700339,112060.0,112050.0,0.1290411]
[1756412063686,1.52700339,112060.0,112050.0,0.67217098]
[1756412064689,0.98387351,112060.0,112050.0,0.67217098]
[1756412064877,1.52700339,112060.0,112050.0,0.67217098]
[1756412065277,0.1320531,112060.0,112050.0,0.67217098]
[1756412065482,0.9747731,112060.0,112050.0,0.67217098]
[1756412067384,0.9747731,112060.0,112050.0,0.1290411]
[1756412067584,0.9746931,112060.0,112050.0,0.67217098]
[1756412068290,0.9837754,112060.0,112050.0,0.67217098]
[1756412069991,0.9746931,112060.0,112050.0,0.67217098]
[1756412070387,1.51782298,112060.0,112050.0,0.64750098]
[1756412070789,1.51782298,112060.0,112050.0,0.67059098]
[1756412070992,0.1320531,112060.0,112050.0,0.67059098]
[1756412071189,1.51770298,112060.0,112050.0,0.67059098]
[1756412071588,0.1292909,112050.0,112040.0,0.1284229]
[1756412071788,0.14712759,112050.0,112040.0,0.67155278]
[1756412074893,0.14712759,112050.0,112040.0,0.1284229]
[1756412075191,0.14712759,112050.0,112040.0,0.67155278]
[1756412077893,0.14712759,112050.0,112040.0,0.1284229]
[1756412078094,0.14712759,112050.0,112040.0,0.67155278]
[1756412079000,0.14712759,112050.0,112040.0,0.1284229]
[1756412079197,0.14712759,112050.0,112040.0,0.67155278]
[1756412080398,0.03432669,112050.0,112040.0,0.67155278]
[1756412081696,0.03432669,112050.0,112040.0,0.67255278]
[1756412081900,0.03432669,112050.0,112040.0,0.67355278]
[1756412082500,0.03432669,112050.0,112040.0,0.67255278]
[1756412082696,0.01783669,112050.0,112040.0,0.67255278]
[1756412083096,0.84196,112060.0,112050.0,0.02309]
[1756412083400,0.84196,112060.0,112050.0,1.21468086]
[1756412085397,0.9311931,112060.0,112050.0,1.21468086]
[1756412085698,0.9547531,112060.0,112050.0,1.21468086]
[1756412086301,0.9712431,112060.0,112050.0,0.1284211]
[1756412086498,0.9712431,112060.0,112050.0,1.21468086]
[1756412088298,0.9722431,112060.0,112050.0,1.21468086]
[1756412088603,0.9720031,112060.0,112050.0,1.21468086]
[1756412089096,0.9730031,112060.0,112050.0,1.21468086]
[1756412089896,0.9720031,112060.0,112050.0,1.21468086]
[1756412091307,0.9710031,112060.0,112050.0,1.21468086]
[1756412098508,0.9710031,112060.0,112050.0,0.1284211]
[1756412098910,0.9710031,112060.0,112050.0,1.21468086]
[1756412100314,1.51413298,112060.0,112050.0,0.58230988]
[1756412100610,1.51413298,112060.0,112050.0,0.55921988]
[1756412100810,0.9710031,112060.0,112050.0,0.55921988]
[1756412101016,1.51413298,112060.0,112050.0,0.55921988]
[1756412101217,0.9710031,112060.0,112050.0,0.67178088]
[1756412101416,1.51413298,112060.0,112050.0,0.67178088]
[1756412101616,1.51513298,112060.0,112050.0,0.67178088]
[1756412101813,0.9715231,112060.0,112050.0,1.21491076]
[1756412102019,0.9715231,112060.0,112050.0,0.67178088]
[1756412102224,1.51565298,112060.0,112050.0,0.67178088]
[1756412102608,1.51565298,112060.0,112050.0,0.128651]
[1756412102910,1.51565298,112060.0,112050.0,0.67178088]
[1756412103620,1.51565298,112060.0,112050.0,0.01609]
[1756412103823,1.51565298,112060.0,112050.0,0.55921988]
[1756412104809,0.9723631,112060.0,112050.0,0.67178088]
[1756412105415,0.9723631,112060.0,112050.0,0.03941]
[1756412105620,1.51549298,112060.0,112050.0,0.58253988]
[1756412105920,0.9723631,112060.0,112050.0,0.55921988]
[1756412106122,1.51549298,112060.0,112050.0,0.55921988]
[1756412106917,0.9723631,112060.0,112050.0,0.55921988]
[1756412107124,1.51549298,112060.0,112050.0,0.58253988]
[1756412107525,1.51549298,112060.0,112050.0,0.55921988]
[1756412107719,0.9723631,112060.0,112050.0,0.01609]
[1756412108026,0.129811,112050.0,112040.0,0.58218988]
[1756412108224,0.69124186,112050.0,112040.0,0.55886988]
[1756412108425,0.14811198,112050.0,112040.0,0.58218988]
[1756412108626,0.69124186,112050.0,112040.0,0.58218988]